bitfinex/quotes_ETHUSD_20220220
["timestamp","ask_amount","ask_price","bid_price","bid_amount"]
[1645352965031,1.45313741,2641.4,2641.2,0.00117238]
[1645352965236,6.45313741,2641.4,2641.2,0.00117238]
[1645352965429,6.45313741,2641.4,2640.7,0.7]
[1645352965430,1.45313741,2641.4,2640.7,0.7]
[1645352965830,1.45313741,2641.4,2641.2,0.00117238]
[1645352966631,1.45313741,2641.4,2640.7,0.7]
[1645352966931,1.45313741,2641.4,2641.2,0.00110833]
[1645352967831,1.45313741,2641.4,2640.7,0.7]
[1645352968036,1.45313741,2641.4,2641.2,0.00110833]
[1645352969083,1.45313741,2641.4,2640.7,0.7]
[1645352969283,1.45313741,2641.4,2641.2,0.00110833]
[1645352970176,1.45313741,2641.4,2640.7,0.7]
[1645352970383,1.45313741,2641.4,2640.7,0.69909294]
[1645352970580,5.0,2641.3,2641.2,0.00112274]
[1645352970780,5.0,2641.3,2640.7,0.69909294]
[1645352970781,40.0,2641.2,2640.7,0.69909294]
[1645352970980,24.0,2640.8,2639.7,3.5]
[1645352971180,0.25,2640.3,2639.6,1.35551082]
[1645352971484,0.25,2640.3,2639.7,1.11299567]
[1645352971485,0.454,2640.2,2639.7,1.11299567]
[1645352974729,0.454,2640.2,2639.7,1.71299567]
[1645352974930,0.25,2640.3,2639.8,1.61057603]
[1645352975127,0.25,2640.3,2639.7,1.71299567]
[1645352975331,0.25,2640.3,2639.8,1.61193885]
[1645352975528,0.25,2640.3,2639.8,2.55967885]
[1645352975794,0.34518,2641.1,2640.0,11.61]
[1645352975985,0.25,2641.1,2640.2,11.61]
[1645352976183,0.25,2641.1,2640.3,3.5]
[1645352976383,3.0217,2641.2,2640.3,3.5]
[1645352976586,0.454,2641.4,2641.1,1.10426542]
[1645352977782,0.454,2641.4,2641.1,1.10563475]
[1645352978385,0.454,2641.4,2641.1,1.40563475]
[1645352978593,0.25,2641.7,2641.1,1.70426542]
[1645352978785,0.3683,2642.0,2641.1,1.70426542]
[1645352978985,0.3683,2642.0,2641.2,3.5]
[1645352979187,0.3683,2642.0,2641.1,1.70563475]
[1645352979626,0.3683,2642.0,2641.8,0.89185957]
[1645352981235,0.3683,2642.0,2641.9,3.5]
[1645352981431,0.3683,2642.0,2641.8,1.55377688]
[1645352982033,0.36041092,2642.0,2641.8,1.55377688]
[1645352982234,0.36041092,2642.0,2641.8,1.55240788]
[1645352982633,0.36041092,2642.0,2641.8,1.55377688]
[1645352983483,0.36041092,2642.0,2641.8,0.95240788]
[1645352983680,0.36041092,2642.0,2641.8,0.89322857]
[1645352984281,0.36041092,2642.0,2641.8,0.001369]
[1645352984478,0.454,2642.2,2641.8,0.001369]
[1645352984685,0.454,2642.2,2640.9,4.9907]
[1645352984877,0.454,2642.2,2641.0,0.3]
[1645352985079,0.454,2642.2,2641.8,0.001369]
[1645352985883,0.95629694,2642.1,2641.5,0.87908851]
[1645352986080,0.454,2642.0,2641.9,0.00136894]
[1645352987127,0.454,2642.0,2641.5,0.87908851]
[1645352987334,1.37988304,2642.0,2641.8,0.00136897]
[1645352988327,1.37988304,2642.0,2640.6,6.9383]
[1645352988528,1.37988304,2642.0,2641.8,0.001369]
[1645352989329,0.454,2642.0,2641.8,0.001369]
[1645352989629,0.454,2642.0,2641.2,1.11487818]
[1645352989830,0.454,2642.0,2641.8,0.001369]
[1645352990230,0.454,2642.0,2641.8,1.09989357]
[1645352990679,0.454,2642.0,2641.8,1.09852457]
[1645352991177,1.454,2642.5,2641.8,1.09989357]
[1645352991778,0.454,2642.5,2641.8,1.09989357]
[1645352991978,0.454,2642.5,2641.8,1.09852457]
[1645352992179,0.454,2642.5,2642.2,0.83664778]
[1645352992386,0.454,2642.5,2641.9,0.00136893]
[1645352993185,0.09529,2642.7,2641.4,16.9902]
[1645352993384,0.25,2642.9,2641.9,11.61136893]
[1645352993586,0.25,2642.9,2642.3,11.61]
[1645352993787,0.0001,2642.9,2642.5,11.61]
[1645352993987,3.44981264,2644.3,2642.6,0.00337049]
[1645352993988,0.25,2643.6,2642.6,0.00337049]
[1645352994186,0.91767308,2644.0,2643.4,0.97557392]
[1645352994442,0.454,2644.3,2643.4,0.97557392]
[1645352995433,1.00387041,2643.9,2643.4,0.97557392]
[1645352995633,1.00387041,2643.9,2642.9,0.1891]
[1645352995837,0.454,2643.8,2642.7,3.0545]
[1645352996234,0.454,2643.8,2642.7,3.3545]
[1645352996434,0.54011616,2643.8,2642.7,0.3]
[1645352996634,0.454,2643.8,2642.6,0.30337049]
[1645352996834,0.85363044,2643.4,2642.8,1.1119759]
[1645352998034,0.85363044,2643.4,2642.6,0.00337049]
[1645352998784,0.454,2643.3,2641.9,0.00140421]
[1645352999178,0.454,2643.3,2642.2,1.12335446]
[1645352999179,0.8995977,2642.8,2642.2,1.12335446]
[1645352999379,0.8995977,2642.8,2641.9,0.00140421]
[1645353000387,0.8995977,2642.8,2642.1,0.91523588]
[1645353000388,0.454,2642.7,2642.1,0.91523588]
[1645353004238,0.454,2642.7,2641.9,0.0014007]
[1645353005136,0.454,2642.7,2641.6,2.07221082]
[1645353005340,0.454,2642.7,2642.3,0.97672302]
[1645353005988,0.454,2642.7,2641.9,0.0014007]
[1645353005989,3.954,2642.7,2641.9,0.0014007]
[1645353006287,3.954,2642.7,2641.6,1.88301082]
[1645353006688,3.954,2642.7,2641.9,0.0014007]
[1645353006689,1.0,2642.6,2641.9,0.0014007]
[1645353006887,0.94604073,2642.4,2641.9,0.0014007]
[1645353007087,3.5,2642.3,2641.9,0.0014007]
[1645353007286,0.94604073,2642.4,2641.9,0.0014007]
[1645353007586,0.94604073,2642.4,2641.7,1.1310941]
[1645353007787,1.94604073,2642.4,2641.9,0.0014007]
[1645353007991,5.44604073,2642.4,2641.9,0.0014007]
[1645353008287,1.94604073,2642.4,2641.9,0.0014007]
[1645353008487,1.0,2642.4,2641.9,0.0014007]
[1645353008688,0.454,2642.5,2641.7,1.1310941]
[1645353008987,3.954,2642.5,2641.9,0.0014007]
[1645353009189,3.954,2642.5,2642.2,2.22157971]
[1645353009450,1.0,2642.4,2642.2,2.22157971]
[1645353009838,0.454,2642.5,2642.2,2.22157971]
[1645353010040,3.954,2642.5,2642.2,2.22157971]
[1645353010442,1.0,2642.4,2642.2,2.22157971]
[1645353010744,1.0,2642.4,2642.2,1.74419658]
[1645353010940,0.454,2642.5,2642.2,1.74419658]
[1645353013182,1.0,2643.0,2642.2,1.74419658]
[1645353013982,1.0,2643.0,2642.7,0.97945828]
[1645353014184,1.0,2643.0,2641.9,0.00126063]
[1645353014385,3.5,2642.9,2641.9,0.00126063]
[1645353014586,0.454,2642.9,2642.6,3.96577629]
[1645353015183,1.44399884,2642.9,2642.6,3.96577629]
[1645353015581,0.454,2642.9,2642.6,3.96577629]
[1645353017036,1.076246,2642.7,2642.6,3.96577629]
[1645353017239,2.971086,2642.7,2642.6,3.96577629]
[1645353017435,8.425086,2642.7,2642.6,3.96577629]
[1645353017834,9.425086,2642.7,2642.6,3.81242462]
[1645353018133,7.61636216,2642.7,2642.6,3.16829462]
[1645353018332,2.61636216,2642.7,2642.6,3.16829462]
[1645353018539,7.61636216,2642.7,2642.6,1.37852664]
[1645353018734,2.61636216,2642.7,2642.6,1.37852664]
[1645353018932,8.56376216,2642.7,2642.6,1.37852664]
[1645353019534,8.56376216,2642.7,2641.6,0.13311082]
[1645353019734,1.0,2642.6,2642.3,1.37852664]
[1645353019934,29.0,2642.3,2641.9,7e-07]
[1645353020137,0.3802,2641.9,2640.3,7.32]
[1645353020338,5.0,2641.6,2640.3,7.32]
[1645353020695,0.454,2641.5,2640.3,7.32]
[1645353020989,1.84761,2641.5,2640.3,7.32]
[1645353021193,5.34761,2641.5,2640.3,7.32]
[1645353021388,0.94794,2641.0,2640.5,1.097028]
[1645353021588,0.454,2640.9,2640.5,1.097028]
[1645353022991,0.704,2640.9,2640.5,1.097028]
[1645353023593,0.704,2640.9,2640.6,0.0013944]
[1645353024442,0.704,2640.9,2640.5,1.097028]
[1645353024632,0.704,2640.9,2640.6,0.00139437]
[1645353025635,0.704,2640.9,2640.5,1.097028]
[1645353025833,0.704,2640.9,2640.6,0.00139437]
[1645353026936,0.704,2640.9,2640.5,1.097028]
[1645353027134,0.704,2640.9,2640.6,0.00139437]
[1645353027833,1.704,2640.9,2640.6,0.00139437]
[1645353028032,0.704,2640.9,2639.8,0.0028077]
[1645353028289,0.704,2640.9,2640.6,0.00139089]
[1645353028290,5.204,2640.9,2640.6,0.00139089]
[1645353028486,0.704,2640.9,2640.6,0.00139089]
[1645353028687,1.0,2640.8,2640.6,0.00139089]
[1645353028886,1.704,2640.9,2640.6,0.00139089]
[1645353029287,1.704,2640.9,2640.2,1.00675622]
[1645353029490,1.704,2640.9,2640.6,0.00139092]
[1645353029684,0.704,2640.9,2640.6,0.00139092]
[1645353030389,0.704,2640.9,2640.1,7.32]
[1645353030585,0.704,2640.9,2640.6,0.00139089]
[1645353031488,0.704,2640.9,2640.6,0.86808384]
[1645353031689,0.704,2640.9,2640.6,0.86669295]
[1645353031943,0.704,2640.9,2640.6,0.86808732]
[1645353032333,0.25,2640.9,2640.6,0.86808732]
[1645353032532,0.25,2640.9,2640.6,1.16808732]
[1645353032732,0.25,2640.9,2640.6,1.16669295]
[1645353033131,0.25,2640.9,2640.6,1.16808732]
[1645353033934,0.25,2640.9,2640.6,0.86669295]
[1645353034238,0.25,2640.9,2640.6,0.86808732]
[1645353035134,0.25,2640.9,2640.6,0.86669295]
[1645353035536,0.25,2640.9,2640.6,0.86808732]
[1645353036381,0.25,2640.9,2640.6,0.86669295]
[1645353036584,0.25,2640.9,2640.6,0.86808732]
[1645353037583,0.25,2640.9,2640.6,0.86669295]
[1645353037785,0.25,2640.9,2640.7,3.5]
[1645353038096,0.25,2641.3,2640.8,11.61]
[1645353038288,0.25,2641.7,2641.0,11.61]
[1645353038486,0.09461,2642.5,2641.2,11.61]
[1645353038684,2.0956,2642.7,2641.3,15.11]
[1645353038885,0.54835,2643.0,2642.4,1.16924271]
[1645353039086,0.09435,2643.0,2642.4,1.16924271]
[1645353039288,0.454,2643.2,2642.4,1.16924271]
[1645353039937,0.96527869,2643.1,2642.4,1.16924271]
[1645353040338,0.96527869,2643.1,2641.9,0.05892455]
[1645353041043,7.30074004,2643.4,2641.9,3.55892455]
[1645353041044,0.09407,2643.4,2641.9,3.55892455]
[1645353041242,0.454,2643.5,2641.9,15.16892455]
[1645353042042,0.454,2643.5,2643.1,0.90339147]
[1645353042249,0.25625865,2643.6,2643.1,0.90339147]
[1645353042448,0.25,2643.6,2643.1,0.90339147]
[1645353042647,0.00625865,2644.1,2643.1,0.90339147]
[1645353043292,1.12659373,2643.9,2643.1,0.90339147]
[1645353043491,0.00625865,2643.8,2643.1,0.90339147]
[1645353043889,0.00625865,2644.1,2643.1,0.90339147]
[1645353044698,1.1122428,2644.0,2643.1,0.90339147]
[1645353044890,0.00625865,2643.9,2643.1,0.90339147]
[1645353045096,0.94861529,2643.6,2642.3,1.1364]
[1645353045292,0.454,2643.5,2642.3,1.4364]
[1645353045695,0.454,2643.5,2642.4,15.11]
[1645353046087,0.454,2643.5,2643.0,1.04405903]
[1645353052689,0.00625865,2643.6,2643.0,1.04405903]
[1645353052890,0.00625865,2643.8,2643.0,1.04405903]
[1645353053489,0.00625865,2643.8,2643.5,0.84977212]
[1645353053691,3.5,2644.0,2643.5,0.84977212]
[1645353053887,0.00625865,2643.9,2643.5,0.84977212]
[1645353054090,1.00625865,2643.9,2643.5,0.84977212]
[1645353054294,0.00625865,2643.9,2642.7,1.1611]
[1645353054542,0.00625865,2643.9,2642.7,1.7611]
[1645353055343,0.00625865,2643.9,2642.9,11.61]
[1645353055547,0.00625865,2644.1,2643.1,11.61]
[1645353055743,0.00625865,2644.2,2643.1,12.21]
[1645353055944,0.00625865,2644.2,2643.3,11.61]
[1645353056245,0.00625865,2644.2,2643.5,11.61]
[1645353056645,0.00625865,2644.2,2643.5,12.21]
[1645353056843,0.00625865,2644.2,2643.6,3.5]
[1645353057044,0.00998606,2644.4,2643.6,3.5]
[1645353057449,0.00998606,2644.4,2644.3,1.13627756]
[1645353057645,0.00998606,2644.4,2643.5,0.6]
[1645353057646,0.00998606,2644.4,2643.6,3.26564467]
[1645353057843,0.00998606,2644.4,2643.5,0.6]
[1645353058047,0.00625865,2644.8,2643.5,0.6]
[1645353058296,0.01248285,2644.5,2643.3,2.62603]
[1645353058691,0.01248285,2644.5,2644.1,0.86415269]
[1645353059301,0.00625865,2644.8,2644.1,0.86415269]
[1645353059302,1.00625865,2644.8,2644.1,0.86415269]
[1645353059497,1.00625865,2644.8,2644.1,0.86308251]
[1645353059498,0.00249685,2644.5,2644.1,0.86308251]
[1645353060392,0.00625865,2644.8,2644.1,0.86308251]
[1645353060593,0.00249685,2644.5,2644.1,0.86308251]
[1645353060792,0.00249685,2644.5,2644.4,1.0168946]
[1645353061595,0.00625865,2644.8,2644.4,1.0168946]
[1645353061792,0.25,2644.9,2644.4,1.0168946]
[1645353061793,0.00249686,2644.6,2644.4,1.0168946]
[1645353062038,0.00249686,2644.6,2643.9,1.2391]
[1645353062741,3.50625865,2644.8,2643.9,1.2391]
[1645353063139,1.1693963,2644.5,2643.9,1.2391]
[1645353063340,1.1693963,2644.5,2643.8,0.99973454]
[1645353063341,0.00625865,2644.4,2643.8,0.99973454]
[1645353066788,0.00625865,2644.4,2643.3,0.6997]
[1645353066991,0.94681,2644.2,2643.3,0.6997]
[1645353067293,3.96025865,2644.1,2643.3,0.6997]
[1645353067793,1.0,2644.0,2643.3,0.6997]
[1645353067989,0.93560169,2643.8,2643.3,0.6997]
[1645353068188,1.38960169,2643.8,2643.3,0.6997]
[1645353068790,3.5,2643.7,2643.3,0.6997]
[1645353068993,0.454,2643.6,2643.3,0.6997]
[1645353069297,30.5,2643.4,2641.9,0.24792455]
[1645353069545,3.954,2643.3,2641.8,0.00140912]
[1645353069742,1.10567993,2642.5,2641.9,1.04443654]
[1645353069944,0.454,2642.5,2641.9,1.04443654]
[1645353071546,0.454,2642.5,2641.6,1.2261]
[1645353071547,0.454,2642.5,2642.3,0.94469635]
[1645353071943,0.454,2642.5,2641.8,0.00140911]
[1645353072446,0.454,2642.5,2641.6,1.5261]
[1645353072644,0.454,2642.5,2641.8,0.00140911]
[1645353073191,0.454,2642.5,2642.1,0.99886201]
[1645353078251,0.454,2642.5,2641.8,0.00140911]
[1645353078439,0.454,2642.5,2641.4,1.5338]
[1645353078638,0.454,2642.5,2641.8,0.00140911]
[1645353079640,2.04094,2643.0,2641.5,11.91]
[1645353079641,0.09372,2643.0,2642.3,0.86914724]
[1645353080692,0.454,2643.1,2642.3,0.86914724]
[1645353080893,3.5,2643.0,2642.7,0.8609483]
[1645353081089,1.00508914,2643.2,2642.7,0.8609483]
[1645353081490,0.00508914,2643.2,2642.7,0.8609483]
[1645353081890,3.50508914,2643.2,2642.7,0.8609483]
[1645353082092,3.50508914,2643.2,2641.9,14.3811]
[1645353082291,1.0,2643.1,2641.9,11.91]
[1645353082489,1.0,2643.1,2641.9,12.21]
[1645353082690,0.99891091,2643.1,2641.9,12.21]
[1645353082890,3.95908914,2643.2,2641.9,12.21]
[1645353083089,3.95908914,2643.2,2641.9,0.6]
[1645353083691,3.95908914,2643.2,2642.4,0.88824878]
[1645353083892,0.45908914,2643.2,2642.4,0.88824878]
[1645353084094,1.05479424,2642.9,2642.4,0.88824878]
[1645353084544,1.05479424,2642.9,2641.8,12.8199]
[1645353084753,1.05479424,2642.9,2641.8,13.42130911]
[1645353084942,1.05479424,2642.9,2641.8,1.21130911]
[1645353085146,1.50879424,2642.9,2641.8,1.21130911]
[1645353085551,1.50879424,2642.9,2642.0,1.06394402]
[1645353086148,3.40352424,2642.9,2642.0,1.06394402]
[1645353086342,4.40352424,2642.9,2642.0,1.06394402]
[1645353086944,1.15387466,2642.5,2642.0,1.06394402]
[1645353087145,0.454,2642.6,2642.0,1.06394402]
[1645353088993,0.09531,2643.1,2642.4,0.96034474]
[1645353089395,1.00508914,2643.2,2642.4,0.96034474]
[1645353089992,0.00508914,2643.2,2642.8,1.05829734]
[1645353090196,0.00625865,2643.3,2642.8,1.05829734]
[1645353090398,0.09375,2643.5,2643.2,0.178]
[1645353090399,0.10000865,2643.5,2643.2,0.178]
[1645353090592,0.00625865,2643.5,2643.2,0.178]
[1645353090793,0.55554865,2643.6,2643.2,0.178]
[1645353090993,0.10308865,2643.8,2643.2,0.178]
[1645353091201,0.09683,2643.8,2643.2,0.178]
[1645353091399,0.00625865,2643.7,2643.2,0.178]
[1645353091593,0.09683,2643.8,2643.2,0.178]
[1645353092652,0.09683,2643.8,2643.2,11.788]
[1645353092851,0.09683,2643.8,2643.3,4.51557896]
[1645353093251,0.09683,2643.8,2643.3,1.01557896]
[1645353093452,0.09683,2643.8,2643.7,0.94078401]
[1645353093853,0.09683,2643.8,2643.2,1.3858]
[1645353094953,0.09683,2643.8,2643.7,0.89528646]
[1645353096991,0.00625865,2644.3,2643.7,0.89528646]
[1645353100260,0.25,2644.2,2643.7,0.89528646]
[1645353100561,0.00625865,2644.1,2643.7,0.89528646]
[1645353102060,0.20625865,2644.2,2643.7,0.89528646]
[1645353103592,0.20625865,2644.2,2644.1,0.178]
[1645353104502,1.84255597,2644.2,2644.1,0.178]
[1645353104893,4.91924213,2644.2,2644.1,0.178]
[1645353105095,4.91924213,2644.2,2642.8,1.1622]
[1645353105096,20.5,2644.1,2642.8,1.1622]
[1645353105294,1.454,2644.0,2642.8,1.1622]
[1645353105492,0.25,2643.7,2642.8,1.1622]
[1645353105693,0.454,2643.6,2642.9,1.09896446]
[1645353107051,0.454,2643.6,2643.3,0.91823506]
[1645353107348,0.25,2643.7,2643.3,0.91823506]
[1645353112096,0.25,2643.7,2643.3,1.21823506]
[1645353112294,0.25,2643.7,2643.3,13.12823506]
[1645353112892,0.00735175,2644.4,2643.3,13.12823506]
[1645353113094,0.25,2644.2,2643.6,11.61]
[1645353113293,0.25,2644.5,2643.6,11.91]
[1645353113690,0.00735272,2644.4,2643.6,11.91]
[1645353113891,0.00735272,2644.4,2643.7,15.11]
[1645353114091,0.00735272,2644.4,2643.8,1.04703004]
[1645353114291,0.00735272,2644.4,2643.9,3.5]
[1645353114543,2.27466,2645.1,2644.0,0.3]
[1645353114747,0.00183834,2644.5,2644.0,0.3]
[1645353115744,3.1852,2645.1,2644.0,0.3]
[1645353115943,3.1852,2645.1,2644.0,0.2541]
[1645353116151,0.00238107,2644.5,2644.0,11.8641]
[1645353116346,0.00238107,2644.5,2644.2,11.61]
[1645353116547,0.00238107,2644.5,2644.0,12.0531]
[1645353117350,0.00195791,2644.5,2644.0,12.0531]
[1645353117550,0.00115791,2644.5,2644.1,0.189]
[1645353118203,0.09531,2645.4,2644.3,12.55606]
[1645353118409,0.09531,2645.4,2644.4,0.96268274]
[1645353118604,0.09531,2645.4,2644.4,1.26268274]
[1645353118800,0.09531,2645.4,2644.4,0.3]
[1645353119208,0.09531,2645.4,2644.2,12.21]
[1645353119607,0.00194824,2645.0,2644.3,3.5]
[1645353119802,0.00194824,2645.0,2644.3,3.8]
[1645353120304,0.00194824,2645.0,2644.4,1.27766722]
[1645353120503,0.10310179,2645.4,2644.5,3.5]
[1645353120504,0.09531,2645.4,2644.5,3.5]
[1645353120704,1.1264,2645.7,2644.5,3.5]
[1645353121003,1.1264,2645.7,2645.5,1.09977699]
[1645353121202,0.54932,2646.0,2645.5,1.09977699]
[1645353121403,0.54932,2646.0,2644.7,4.7199]
[1645353121604,1.54932,2646.0,2644.8,0.3]
[1645353121802,1.63543616,2646.0,2644.7,1.2199]
[1645353122051,0.94628,2645.7,2644.7,1.2199]
[1645353122251,1.40028,2645.7,2644.7,1.2199]
[1645353122454,1.01354823,2645.5,2644.9,0.96726277]
[1645353122654,1.4956,2645.7,2644.9,0.96726277]
[1645353122854,2.4956,2645.7,2644.9,0.96726277]
[1645353123051,1.58171616,2645.7,2644.9,0.96726277]
[1645353123260,0.00228172,2645.3,2644.3,4.32205022]
[1645353123454,0.94644,2645.2,2644.3,4.32205022]
[1645353123655,0.94644,2645.2,2644.3,1.23375022]
[1645353123853,0.454,2645.1,2644.3,1.23375022]
[1645353124255,1.18656167,2645.0,2644.3,2.17912411]
[1645353124456,0.00228179,2644.9,2644.0,0.189]
[1645353124658,1.4006,2644.8,2644.0,0.189]
[1645353125257,1.4006,2644.8,2643.6,1.1512]
[1645353125454,1.17687444,2644.4,2643.8,0.89291828]
[1645353125692,1.63087444,2644.4,2643.8,0.89291828]
[1645353126791,1.63316216,2644.4,2643.8,0.89291828]
[1645353126990,0.45628772,2644.4,2643.8,0.89291828]
[1645353127797,0.454,2644.4,2643.8,0.89291828]
[1645353128192,0.45628772,2644.4,2643.8,0.89291828]
[1645353128694,0.45628772,2644.4,2644.3,1.16981393]
[1645353128993,0.454,2644.4,2644.3,1.16981393]
[1645353129193,0.45628772,2644.4,2644.3,1.16981393]
[1645353130240,0.00915017,2644.6,2644.3,1.16981393]
[1645353130241,0.454,2645.0,2644.3,1.16981393]
[1645353130446,0.00228685,2644.5,2644.3,1.16981393]
[1645353131444,2.2974,2645.2,2644.3,1.16981393]
[1645353131648,0.00228684,2644.5,2644.3,1.16981393]
[1645353132647,0.25,2645.2,2644.3,1.16981393]
[1645353132848,0.25,2645.2,2643.9,1.2186]
[1645353132849,0.009146,2644.9,2644.0,0.3]
[1645353133708,0.94645,2645.2,2643.9,1.2186]
[1645353133909,0.454,2645.0,2643.9,1.2186]
[1645353134107,0.00228694,2644.6,2644.1,0.93214486]
[1645353134907,0.454,2644.7,2644.1,0.93214486]
[1645353135208,0.00228696,2644.5,2644.1,0.93214486]
[1645353135809,0.25,2644.4,2644.1,0.93214486]
[1645353136413,0.25228694,2644.4,2644.1,0.93214486]
[1645353137445,0.25,2644.4,2644.1,0.93214486]
[1645353137643,0.25228693,2644.4,2644.1,0.93214486]
[1645353137844,0.25228693,2644.4,2644.1,1.23214486]
[1645353138653,0.25,2644.4,2644.1,12.84214486]
[1645353138845,0.00228693,2644.4,2644.1,13.14214486]
[1645353139047,0.00228693,2644.4,2644.1,1.53214486]
[1645353139244,0.25228693,2644.4,2644.1,1.53214486]
[1645353139847,0.25,2644.4,2644.1,1.53214486]
[1645353140046,0.25,2645.1,2644.8,0.90358532]
[1645353140245,0.25,2645.1,2644.1,0.3]
[1645353140446,0.25,2645.1,2644.0,3.2388]
[1645353140699,0.25,2645.1,2644.0,3.23773967]
[1645353141103,0.25,2645.1,2644.0,0.29893967]
[1645353141297,0.25,2645.1,2644.4,0.96551359]
[1645353141298,0.00228692,2644.7,2644.4,0.96551359]
[1645353141600,0.5,2644.6,2644.0,0.29893967]
[1645353141800,0.00228692,2644.7,2644.0,0.29893967]
[1645353141998,0.25,2644.5,2644.0,0.29893967]
[1645353142598,0.25228695,2644.5,2644.0,0.29893967]
[1645353142799,0.25228695,2644.5,2644.4,0.92106787]
[1645353143403,0.25,2644.5,2644.4,0.92106787]
[1645353144204,0.25,2644.5,2644.0,0.29893967]
[1645353144847,0.00228693,2644.4,2644.0,0.29893967]
[1645353145546,0.00228693,2644.4,2644.3,0.85416572]
[1645353145747,0.25,2644.5,2644.3,0.85416572]
[1645353146147,0.0022869,2644.4,2644.3,0.85416572]
[1645353146948,0.25,2644.5,2644.3,0.85416572]
[1645353147348,0.25228695,2644.5,2644.3,0.85416572]
[1645353148302,0.25,2644.5,2644.3,0.85416572]
[1645353148503,0.25228695,2644.5,2644.3,0.85416572]
[1645353149305,0.25,2644.5,2644.3,0.85416572]
[1645353149700,0.25228695,2644.5,2644.3,0.85416572]
[1645353150504,0.25,2644.5,2644.3,0.85416572]
[1645353150903,0.25228695,2644.5,2644.3,0.85416572]
[1645353151703,0.25,2644.5,2644.3,0.85416572]
[1645353151963,0.25228694,2644.5,2644.3,0.85416572]
[1645353152954,0.25,2644.5,2644.3,0.85416572]
[1645353153254,0.25228694,2644.5,2644.3,0.85416572]
[1645353154253,0.25,2644.5,2644.3,0.85416572]
[1645353154454,0.25228694,2644.5,2644.3,0.85416572]
[1645353156594,0.25,2644.5,2644.3,0.85416572]
[1645353156794,0.25228694,2644.5,2644.3,0.85416572]
[1645353157797,0.25,2644.5,2644.3,0.85416572]
[1645353157997,0.25228694,2644.5,2644.3,0.85416572]
[1645353158199,0.70628694,2644.5,2643.9,1.2186]
[1645353158402,0.70628694,2644.5,2643.5,2.8224]
[1645353158601,0.70628694,2644.5,2643.4,3.2178]
[1645353158999,0.704,2644.5,2643.4,3.2178]
[1645353159299,1.03911443,2644.3,2643.7,1.06879689]
[1645353159544,3.50186048,2644.4,2643.7,1.06879689]
[1645353159545,0.25,2643.9,2643.7,1.06879689]
[1645353160346,0.25,2643.9,2643.3,1.2053]
[1645353160847,0.25,2643.9,2643.3,1.20381188]
[1645353161049,0.25,2643.9,2643.1,0.13311082]
[1645353161646,1.12909373,2643.8,2643.3,0.00143558]
[1645353161847,0.25,2643.9,2643.3,0.00143558]
[1645353162647,0.25,2643.9,2643.2,1.16572112]
[1645353162847,0.25,2643.9,2643.3,0.0012267]
[1645353163301,0.25,2643.9,2643.7,1.04730729]
[1645353163697,0.25,2643.9,2643.3,0.0012267]
[1645353163901,0.25,2643.9,2643.0,1.1998]
[1645353164107,0.25,2643.9,2643.3,0.0012267]
[1645353164997,0.25,2643.9,2643.0,1.1998]
[1645353164998,0.25,2643.9,2643.5,0.93878533]
[1645353165497,0.25,2643.9,2643.3,0.0012267]
[1645353165697,3.75,2643.9,2643.3,0.0012267]
[1645353166299,0.454,2643.8,2643.0,1.1998]
[1645353166498,0.454,2643.8,2643.3,0.0012267]
[1645353166801,1.44766656,2643.8,2643.3,0.0012267]
[1645353167046,3.5,2643.7,2643.3,0.0012267]
[1645353167244,3.954,2643.7,2643.3,0.0012267]
[1645353167446,3.954,2643.7,2642.8,7.32]
[1645353167646,0.25,2643.4,2642.8,7.62]
[1645353167844,0.25,2643.4,2643.3,0.00115957]
[1645353168849,0.25,2643.4,2643.2,0.00115959]
[1645353169745,0.25,2643.4,2642.8,7.92]
[1645353170347,0.25,2643.4,2642.8,8.49721992]
[1645353170548,0.25,2643.4,2643.1,1.1566464]
[1645353171397,0.25,2643.4,2643.1,1.15785847]
[1645353172295,0.25,2643.4,2643.1,1.1566464]
[1645353172519,0.25,2643.4,2643.1,1.15785847]
[1645353173496,0.25,2643.4,2643.1,1.1566464]
[1645353173698,0.25,2643.4,2643.1,1.15785847]
[1645353173998,0.25,2643.4,2643.1,1.45785847]
[1645353174199,0.25,2643.4,2643.1,1.75785847]
[1645353174651,0.25,2643.4,2643.1,1.7566464]
[1645353174849,0.25,2643.4,2643.1,1.75784667]
[1645353175852,0.25,2643.4,2643.1,1.7566464]
[1645353176051,0.25,2643.4,2643.1,1.75784667]
[1645353176452,0.11058028,2644.3,2643.1,1.75784667]
[1645353176652,0.11058028,2644.3,2643.2,0.94642]
[1645353176850,0.25,2643.9,2643.3,11.61]
[1645353177154,0.25,2643.9,2643.3,12.21]
[1645353177852,0.25,2643.9,2643.5,5.0]
[1645353178052,0.1,2643.9,2643.6,11.61]
[1645353178309,0.25,2644.4,2643.6,12.21]
[1645353178509,0.00622736,2645.1,2643.6,12.21]
[1645353178700,0.00887194,2644.3,2643.7,1.1823]
[1645353178900,0.00887194,2644.3,2644.2,1.12428873]
[1645353179507,3.50622736,2644.9,2644.2,1.12428873]
[1645353179804,0.0022183,2644.4,2644.2,1.12428873]
[1645353179999,0.0022183,2644.4,2643.7,1.1823]
[1645353180701,3.50622736,2644.7,2643.7,1.1823]
[1645353180905,0.00221428,2644.4,2643.7,1.1823]
[1645353181100,0.00221428,2644.4,2644.0,1.10195055]
[1645353181954,0.09531,2644.5,2644.0,1.10195055]
[1645353182151,0.00221421,2644.4,2644.0,1.10195055]
[1645353182355,0.04752421,2644.6,2644.0,1.10195055]
[1645353182555,3.96908317,2644.7,2644.0,1.10195055]
[1645353182952,1.0,2644.6,2644.0,1.10195055]
[1645353183153,3.5,2644.5,2644.0,1.10195055]
[1645353184555,0.0018552,2644.5,2644.0,1.10195055]
[1645353185555,0.46022736,2644.7,2644.0,1.10195055]
[1645353185796,0.00229686,2644.5,2644.4,1.18459428]